Cogmind - Beta 17 @@@ ROGUE MODE // 2026.08.12 @ 22:38:41 Player: beep Result: Destroyed by as-91325 with Assembled Rifle Performance ------------- Evolutions (0) 0 Regions Visited (2) 400 Robots Destroyed (11) 55 Value Destroyed (335) 335 Prototype IDs (0) 0 Alien Tech Used (0) 0 Bonus (0) 0 TOTAL SCORE: 790 Bonus ------- None Cogmind --------- Core Integrity 0/250 Matter 423/500 Energy 350/350 System Corruption 5% Temperature Cool (0) Movement Core (150) Ox2 Location -10/Mines Parts ------- > --- POWER (1) -------- (None) > --- PROPULSION (2) --- (None) > --- UTILITY (2) ------ High-capacity Battery High-capacity Matter Pod > --- WEAPON (2) ------- (None) > --- INVENTORY (5) ---- Hover Unit Sensor Array Datajack Peak State ------------ > --- POWER ------------ Light Nuclear Core > --- PROPULSION ------- Aluminum Leg Aluminum Leg > --- UTILITY ---------- High-capacity Battery Sensor Array > --- WEAPON ----------- Light EM Pulse Cannon Light EM Pulse Cannon > --- INVENTORY -------- Datajack [Rating: 11] Favorites ----------- Power Light Nuclear Core Engine Light Ion Engine Power Core Light Nuclear Core Propulsion Aluminum Leg Leg Aluminum Leg Wheel Wheel Utility High-capacity Battery Device Sensor Array Storage High-capacity Battery Weapon Light EM Pulse Cannon Energy Gun EM Pulse Gun Energy Cannon Light EM Pulse Cannon Build | -11 -10 -10 ------- Run | Yrd Mat Min Slots Evolved . | . . . Power . | . . . Propulsion . | . . . Utility . | . . . Weapon . | . . . Parts Attached 14 | 5 9 . Power 2 | 1 1 . Engine 1 | 1 . . Core 1 | . 1 . Reactor . | . . . Propulsion 4 | 2 2 . Treads . | . . . Leg 2 | . 2 . Wheel 2 | 2 . . Hover . | . . . Flight . | . . . Utility 4 | . 4 . Device 1 | . 1 . Storage 3 | . 3 . Processor . | . . . Hackware . | . . . Protection . | . . . Artifact . | . . . Weapon 4 | 2 2 . Energy Gun 2 | 2 . . Energy Cannon 2 | . 2 . Ballistic Gun . | . . . Ballistic Cannon . | . . . Launcher . | . . . Special Weapon . | . . . Impact Weapon . | . . . Slashing Weapon . | . . . Piercing Weapon . | . . . Special Melee Weapon . | . . . Unidentified Prototypes . | . . . Parts Lost 5 | . 3 2 Power 1 | . . 1 Propulsion 2 | . 1 1 Utility . | . . . Weapon 2 | . 2 . Highest Loss Streak 3 | . 3 2 To Critical Strikes 1 | . 1 . Average Backups 2 | 1 2 3 Power . | . . . Propulsion 1 | . 1 1 Utility . | . . 1 Weapon . | . . . Tool/Special . | . . . Unused Backups 6 | . 4 2 Power . | . . . Propulsion 1 | . . 1 Utility 1 | . 1 . Weapon 2 | . 2 . Tool/Special 2 | . 1 1 Average Slot Usage (%) 92 | . 95 54 Engine 1 | . 2 . Core 12 | . 11 14 Leg 22 | . 23 12 Wheel 4 | . 4 . Device 6 | . 7 . Storage 17 | . 16 28 Energy Gun 5 | . 5 . Energy Cannon 20 | . 21 . Peak Build Rating 11 | 5 11 6 Average Rating 9 | 3 9 5 On Entrance 3 | . 5 6 Avg Prop Armor Cover (%) . | . . . Naked Turns . | . . . Heaviest Build 21 | 6 21 13 Greatest Support 20 | 20 20 10 Greatest Overweight (x) 4 | . 1 4 Average Overweight (x) . | . . 1 Largest Inventory Capacity 5 | 5 5 5 Average Capacity 5 | 5 5 5 Most Carried 5 | 3 5 3 Average Carried 2 | 1 2 3 Final Capacity 5 | 5 5 5 Final Carried 3 | 3 3 3 Class Distribution -------------------- 100% | Mutant Dominant Class ---------------- Mutant | -10/Materials Mutant | -10/Mines Resources | -11 -10 -10 ----------- Run | Yrd Mat Min Matter Collected 595 | 250 345 . Remotely . | . . . Salvage Created 370 | 33 337 . Parts 18 | 1 17 . Haulers Intercepted . | . . . Recyclers Shooed . | . . . Parts Field Recycled . | . . . Retrieved Matter . | . . . Parts Self-Destructed . | . . . Prevented . | . . . Parts Restored . | . . . Kills | -11 -10 -10 ------- Run | Yrd Mat Min Combat Hostiles Destroyed 7 | 1 6 . Guns 3 | 1 2 . Cannons 3 | . 3 . AOE 1 | . 1 . Classes Destroyed 4 | 1 3 . Tunneler 1 | . 1 . Watcher 3 | . 3 . Swarmer 1 | . 1 . Grunt 6 | 1 5 . Best Kill Streak 3 | 1 3 . Combat Bots Only 2 | 1 2 . Max Kills in Single Turn 2 | 1 2 . Gunslinging . | . . . Exploded 1 | . 1 . Melee . | . . . Uniques/NPCs Destroyed . | . . . Combat | -11 -10 -10 -------- Run | Yrd Mat Min Hostile Shots Fired 70 | 1 57 12 Missed 20 | . 19 1 Hits 50 | 1 38 11 Projectile 50 | 1 38 11 Critical Strikes 3 | . 3 . Damage Taken 756 | 10 600 146 Core 258 | . 154 104 Absorbed by Shields . | . . . Core Remaining (%) 100 | 100 . . Volleys Fired 26 | 1 25 . Largest 2 | 2 2 . Hottest 112 | 80 112 . Shots Fired 48 | 2 46 . Gun 16 | 2 14 . Cannon 32 | . 32 . Launcher . | . . . Special . | . . . Kinetic . | . . . Thermal 7 | 1 6 . Explosive . | . . . Electromagnetic 41 | 1 40 . Robot Hit Streak 3 | 2 3 . Robot Miss Streak 5 | . 5 . Penetration Max . | . . . Secondary Targets 1 | . 1 . Max Gunslinging Chain 1 | . 1 . Shots Hit Robots 21 | 2 19 . Core Hits 15 | 2 13 . Critical Kills . | . . . Critical Parts Destroyed . | . . . Critical Strikes . | . . . Melee Attacks . | . . . Impact . | . . . Slashing . | . . . Piercing . | . . . Sneak Attacks . | . . . Combat Hostiles . | . . . Follow-up Attacks . | . . . Damage Inflicted 785 | 22 763 . Guns 130 | 22 108 . Cannons 355 | . 355 . Explosions 300 | . 300 . Melee . | . . . Ramming . | . . . Kinetic . | . . . Thermal 185 | 10 175 . Explosive 147 | . 147 . Electromagnetic 453 | 12 441 . Impact . | . . . Slashing . | . . . Piercing . | . . . Highest Corruption 5 | . 5 5 Average Corruption 4 | . 4 5 Corruption Purged . | . . . Corruption Blocked . | . . . Effects 23 | . 22 1 Message Errors 7 | . 7 . Matter Fused 8 | . 7 1 Heat Flow Errors 2 | . 2 . Energy Discharges 2 | . 2 . Data Loss (minor) 3 | . 3 . Data Loss (major) 1 | . 1 . Overload Shots . | . . . Overflow Damage 6 | . 6 . Projectiles 6 | . 6 . Explosions . | . . . Melee . | . . . Knockbacks . | . . . Impact . | . . . Kinetic . | . . . Secondary . | . . . Self-Inflicted Damage 206 | . 206 . Shots 3 | . 3 . Rammed . | . . . Targets Rammed . | . . . Kicked . | . . . Crushed . | . . . Highest Temperature 191 | 3 191 . Average Temperature 57 | 2 58 . Received Heat Transfer 183 | 6 177 . Siege Activations . | . . . Martial Activations . | . . . Shielding Activations . | . . . Robots Disrupted . | . . . Combat Hostiles . | . . . Robots Corrupted . | . . . Combat Hostiles . | . . . Parts Fried 2 | . 2 . Impact Corruptions . | . . . Robots Melted . | . . . Combat Hostiles . | . . . Parts Melted . | . . . Heat Transferred 225 | 25 200 . Parts Sabotaged . | . . . Parts Stolen . | . . . Parts Stripped . | . . . Power Chain Reactions 2 | . 2 . Alert | -11 -10 -10 ------- Run | Yrd Mat Min Maximum Alert Level . | . . . Low Security (%) 100 | 100 100 100 Level 1 . | . . . Level 2 . | . . . Level 3 . | . . . Level 4 . | . . . Level 5 . | . . . High Security . | . . . Max Security . | . . . Peak Influence 190 | 20 190 3 Initial 3 | . . 3 Average 48 | 2 58 . Influence Increases 383 | 20 363 . Destroy 0b10 Robot/C 140 | 20 120 . Destroy 0b10 Robot/NC 20 | . 20 . Destroy Leader 26 | . 26 . Successful Hack 2 | . 2 . Disable Machine 60 | . 60 . Destroy Structure 45 | . 45 . Lose Combat Pursuer 90 | . 90 . Influence Decreases 383 | 20 355 8 Entered New Map 5 | . . 5 Time Decay 348 | 20 325 3 Lost Part 30 | . 30 . Squads Dispatched . | . . . Investigation . | . . . Extermination . | . . . Reinforcement . | . . . Assault . | . . . Garrison . | . . . Intercept . | . . . Searches Triggered . | . . . Construction Impeded . | . . . Haulers Reinforced . | . . . Active Scanning Responses . | . . . Cargo Convoy Interrupts . | . . . Stealth | -11 -10 -10 --------- Run | Yrd Mat Min Distress Signals 1 | . . 1 Communications Jammed . | . . . Distress Signals . | . . . Times Spotted 25 | 1 20 4 Peak Tracking Total 4 | 1 4 3 Tactical Retreats 4 | . 3 1 Traps | -11 -10 -10 ------- Run | Yrd Mat Min Traps Triggered 3 | . 3 . Indirectly . | . . . Trap Hack Attempts . | . . . Triggered . | . . . Disarmed . | . . . Reprogrammed . | . . . Reused . | . . . Traps Extracted . | . . . Installed . | . . . Triggered . | . . . Machines | -11 -10 -10 ---------- Run | Yrd Mat Min Machines Disabled 5 | . 5 . Max in Single Turn 3 | . 3 . Machines Repaired . | . . . Machines Dismantled . | . . . Machines Sabotaged . | . . . Overloaded Fab Kills . | . . . Hacking | -11 -10 -10 --------- Run | Yrd Mat Min Machines Accessed 4 | . 4 . Terminals 3 | . 3 . Fabricators . | . . . Repair Stations . | . . . Recycling Units 1 | . 1 . Scanalyzers . | . . . Garrison Access . | . . . Total Hacks 5 | . 5 . Successful 5 | . 5 . Failed . | . . . Catastrophic . | . . . Database Lockouts . | . . . Manual . | . . . Terminals 3 | . 3 . Fabricators . | . . . Repair Stations . | . . . Recycling Units 2 | . 2 . Scanalyzers . | . . . Garrison Access . | . . . Terminal Hacks 3 | . 3 . Record 2 | . 2 . Dispatch Records 1 | . 1 . Fabricator Hacks . | . . . Repair Station Hacks . | . . . Recycling Unit Hacks 2 | . 2 . Recycle Component 1 | . 1 . Report Inventory 1 | . 1 . Scanalyzer . | . . . Garrison Access Hacks . | . . . Unauthorized Hacks . | . . . Terminals . | . . . Fabricators . | . . . Repair Stations . | . . . Recycling Units . | . . . Scanalyzers . | . . . Garrison Access . | . . . Data Cores Recovered . | . . . Used . | . . . Hacking Detections 1 | . 1 . Full Trace Events . | . . . Feedback Events . | . . . Feedback Blocked . | . . . Robot Schematics Acquired . | . . . Robots Built . | . . . Authchips . | . . . Time . | . . . Total Robot Build Rating . | . . . Part Schematics Acquired . | . . . Parts Built . | . . . Authchips . | . . . Time . | . . . Total Part Build Rating . | . . . Part Studies Acquired . | . . . Parts Repaired . | . . . Time . | . . . Parts Recycled 1 | . 1 . Recycled Matter . | . . . Retrieved Matter . | . . . Retrieved Components . | . . . Parts Scanalyzed . | . . . Part Schematics Acquired . | . . . Parts Damaged . | . . . Bothacking | -11 -10 -10 ------------ Run | Yrd Mat Min Used RIF Installer . | . . . Robots Hacked . | . . . Non-combat . | . . . Combat . | . . . Robot Hacks Applied . | . . . Relay Couplers Released . | . . . Fabnet Peak Effective % . | . . . Robots Rewired . | . . . Allies Hacked . | . . . Hacks Repelled . | . . . Allies | -11 -10 -10 -------- Run | Yrd Mat Min Total Allies . | . . . Largest Group . | . . . Highest-Rated Group . | . . . Highest-Rated Ally . | . . . Total Orders . | . . . Ally Attacks . | . . . Total Damage . | . . . Kills . | . . . Allies Corrupted . | . . . Allies Melted . | . . . Intel | -11 -10 -10 ------- Run | Yrd Mat Min Active Infowar (turns) 541 | . 541 . Sensors 541 | . 541 . Robot Analysis Total . | . . . Derelict Logs Recovered . | . . . Drone Launches . | . . . Drone Recoveries . | . . . Exploration | -11 -10 -10 ------------- Run | Yrd Mat Min Turns Passed 1273 | 156 1052 65 Spaces Moved 926 | 185 707 34 Core 30 | 27 . 3 Treads . | . . . Legs 573 | . 542 31 Wheels 323 | 158 165 . Hover . | . . . Flight . | . . . Fastest Speed 50 | 50 80 150 Average Speed 123 | 75 132 192 Slowest Speed 250 | 80 190 250 Overloaded Moves . | . . . Propulsion Burnouts . | . . . Robots Hopped . | . . . Potential Cave-ins . | . . . Cave-ins Triggered . | . . . Exploration Rate (%) 33 | 6 82 13 Regions Visited 2 Branch Regions 1 Pre-discovered Areas . | . . . Known Exits Taken . | . . . Unknown Exits Taken 2 | 1 1 . Scrap Searched . | . . . Spaces Dug . | . . . Terrain Destroyed 59 | . 59 . Melee . | . . . Projectile . | . . . AOE 59 | . 59 . Terrain Rammed . | . . . Walls Destroyed . | . . . Machines Disabled . | . . . Actions | -11 -10 -10 --------- Run | Yrd Mat Min Total 1013 | 198 781 34 Wait 19 | . 19 . Move 924 | 184 706 34 Hop . | . . . Pick Up 16 | 8 8 . Fast Attach 4 | . 4 . Attach 9 | 5 4 . Detach 3 | . 3 . Swap 3 | . 3 . Drop 9 | . 9 . Fire 26 | 1 25 . Melee . | . . . Ram . | . . . Kick . | . . . Crush . | . . . Escape Stasis . | . . . Rewire . | . . . Trap . | . . . Miscellaneous . | . . . Route ------- -11/Scrapyard -10/Materials (discovered 4 exits: [*Mat x2] / [*Min x2]) -10/Mines History --------- Turn | Location | Event 2 | -11/Scrapyard | Met Revision 17 110 | -11/Scrapyard | Discovered new exit (range 8) 157 | -11/Scrapyard | Entered Materials 231 | -10/Materials | Discovered new exit (range 12) 348 | -10/Materials | Build established: Mutant 470 | -10/Materials | Core integrity fell below 50% 474 | -10/Materials | Discovered new exit (range 15) 522 | -10/Materials | Discovered new exit (range 15) 742 | -10/Materials | Discovered new exit (range 4) 1209 | -10/Materials | Entered Mines 1210 | -10/Mines | Assembled infested the area 1215 | -10/Mines | Assisted by a Guerilla fighting off Assembled 1234 | -10/Mines | Lost 3 parts (1n2w) 1270 | -10/Mines | Core integrity fell below 20% 1274 | -10/Mines | Destroyed by as-91325 with Assembled Rifle Last Messages --------------- 01063_ System corrupted: Component data lost. 01101_ System corrupted: Heat flow error (+142). 01172_ S-10 Pest destroyed. 01172_ Terminal disabled. 01173_ Acquired 18 matter. 01173_ K-01 Serf collects debris. 01182_ Critical hit (Destroy). 01182_ Lgt. EM Pulse Cannon destroyed. 01203_ Aluminum Leg destroyed. LOCATION=UNKNOWN GOAL=ESCAPE 01210_ ALERT: Infestation in the mines, dispatching Demolisher response squad. 01215_ A derelict emerges from the shadows: "You need to get out of here! I've been tracking a group of Assembled to figure out where they're coming from, and they're closing on this area, come on!" 01245_ UE-DPK(h) destroyed. 01252_ System corrupted: Matter fused (-7). 01267_ Aluminum Leg destroyed. 01272_ Lgt. Nuclear Core destroyed. Map ----- +----------------------------------------------------+ | ?????????????????????????????? | | ?????????????????????????????? | | ?????????????????????????????? | | ?????????????????????????????? | | ?????????????????????????????? | | ?????????????????????????????? | | ?????????????????????????????? | | ?????????????????????????????? | | ?????????????????????????????? | | ?????????????????????????????? | | ????????????###??????????????? | | ???????????# ??????????????? | | ???????????# #??????????????? | | ???????????# #??????????????? | | ???????????# #??????????????? | | ???????????# ##?????????????? | | ???????????# ??????????????? | | ???????????# #??????????????? | | ???####????# #??????????????? | | ???# #????# #??????????????? | | ???# ##??## #??####???#????? | | ???# #### #### ##? #????? | | ???## ## ## ##%#????? | | ????# a !#????? | | ????# a ####????? | | ????#@ a #???????? | | ????# #??????? | | ???# ??? | | ???# ?? | | ???# ?? | | ???## ## ###? | | ????# ##### ###??? | | ???# ##???########????? | | ??# #????????????????? | | ??# ????????????????? | | ??## ???????????????? | | ???###### #??????????????? | | ????????## ##??????????????? | | ?????????# #????????????????? | | ????????? ?????????????????? | | ?????????? ?????????????????? | | ?????????????????????????????? | | ?????????????????????????????? | | ?????????????????????????????? | | ?????????????????????????????? | | ?????????????????????????????? | | | | | | | | | +----------------------------------------------------+ Best States ------------- Heat Dissipation 25 Energy Generation 14 Energy Capacity 410 Matter Stores 420 Matter Capacity 500 Sight Range 16 Robot Scan Range 14 Terrain Scan Density 10 Evasion (%) 55 Item Schematics ----------------- None Robot Schematics ------------------ None Fabricated ------------ Nothing Repaired ---------- Nothing Studied --------- None Alien Tech Used ----------------- None Achievements -------------- Storm Trooper Challenges ------------ None Game ------ Seed SupersonicMachineCoupler Manual? 0 Play Time 00:35:00 Cumulative 0.7 hours Start 2026.08.12 @ 22:00:07 End 2026.08.12 @ 22:38:41 Sessions 1 Manual Loads 0 Difficulty Rogue Special Mode None Game No. 2 Rogue 2 Adventurer 0 Explorer 0 Win Type - Total 0 Types 0/0/0/0/0/0/0/0/0/0 Lore% 0 Gallery% 0 Achievement% 1 Wizard Run 0 Options --------- Layout 1 ASCII 0 Keyboard 1 Movement Arrows Keybinds 1 Fullscreen 2 Font 32/SmallcapsGlow Map View 77x35 Zoom Use 0% Tactical HUD 1 Map Filters NONE Filters NONE Steam 1 RUN: 63571b0c-83ca-4a37-bfeb-f9ac9a0b7987